[Event "Titled Tuesday Blitz November 07 Early 2023"]
[White "Samaganova, Aleksandra"]
[Black "Bilan, Danila"]
[WhiteFideId "13800221"]
[BlackFideId "24161918"]
[WhiteElo "2339"]
[BlackElo "2511"]
[Result "0-1"]
[Round "4"]
[TimeControl "180+1"]
[Date "2023.11.07"]
[WhiteClock "0:00:53"]
[BlackClock "0:00:18"]
[Board "165"]

1. c4 {[%clk 0:03:00]}  c6 {[%clk 0:02:59]} 2. e4 {[%clk 0:03:00]}  d5 {[%clk 0:02:59]} 3. exd5 {[%clk 0:03:01]}  cxd5 {[%clk 0:03:00]} 4. d4 {[%clk 0:03:01]}  Nf6 {[%clk 0:03:00]} 5. Nc3 {[%clk 0:03:02]}  Nc6 {[%clk 0:03:00]} 6. Nf3 {[%clk 0:03:01]}  Bg4 {[%clk 0:03:00]} 7. Be2 {[%clk 0:03:01]}  e6 {[%clk 0:02:59]} 8. O-O {[%clk 0:03:00]}  Be7 {[%clk 0:02:55]} 9. h3 {[%clk 0:02:59]}  Bh5 {[%clk 0:02:55]} 10. c5 {[%clk 0:02:59]}  O-O {[%clk 0:02:53]} 11. a3 {[%clk 0:02:59]}  Ne4 {[%clk 0:02:51]} 12. Qd3 {[%clk 0:02:36]}  Bg6 {[%clk 0:02:38]} 13. Qe3 {[%clk 0:02:31]}  f5 {[%clk 0:02:34]} 14. Nxe4 {[%clk 0:02:21]}  dxe4 {[%clk 0:02:27]} 15. Ne5 {[%clk 0:02:09]}  Nxd4 {[%clk 0:01:43]} 16. Nxg6 {[%clk 0:01:54]}  hxg6 {[%clk 0:01:20]} 17. Bd1 {[%clk 0:01:49]}  Bxc5 {[%clk 0:01:16]} 18. Qg3 {[%clk 0:01:43]}  Rc8 {[%clk 0:00:59]} 19. Qxg6 {[%clk 0:01:36]}  Qf6 {[%clk 0:00:50]} 20. Qh5 {[%clk 0:01:29]}  Bd6 {[%clk 0:00:43]} 21. Bg5 {[%clk 0:01:19]}  Qe5 {[%clk 0:00:41]} 22. g3 {[%clk 0:01:19]}  f4 {[%clk 0:00:21]} 23. gxf4 {[%clk 0:01:13]}  Rxf4 {[%clk 0:00:21]} 24. Bxf4 {[%clk 0:01:01]}  Qxf4 {[%clk 0:00:21]} 25. Re1 {[%clk 0:00:52]}  Qh2+ {[%clk 0:00:17]} 26. Kf1 {[%clk 0:00:53]}  Qh1# {[%clk 0:00:18]} 0-1


[Site "https://www.chess.com"]

[Event "Titled Tuesday Blitz November 07 Early 2023"]
[White "Khater, Sherif"]
[Black "gpsji27"]
[WhiteFideId "2034280"]
[WhiteElo "2504"]
[BlackElo "2331"]
[Result "0-1"]
[Round "4"]
[TimeControl "180+1"]
[Date "2023.11.07"]
[WhiteClock "0:00:30"]
[BlackClock "0:00:13"]
[Board "167"]

1. c4 {[%clk 0:03:00]}  Nf6 {[%clk 0:02:55]} 2. Nc3 {[%clk 0:02:57]}  e6 {[%clk 0:02:56]} 3. e4 {[%clk 0:02:57]}  d5 {[%clk 0:02:38]} 4. e5 {[%clk 0:02:56]}  d4 {[%clk 0:02:37]} 5. exf6 {[%clk 0:02:57]}  dxc3 {[%clk 0:02:37]} 6. bxc3 {[%clk 0:02:53]}  Qxf6 {[%clk 0:02:37]} 7. Nf3 {[%clk 0:02:54]}  c5 {[%clk 0:02:37]} 8. d4 {[%clk 0:02:51]}  cxd4 {[%clk 0:02:37]} 9. cxd4 {[%clk 0:02:51]}  Bb4+ {[%clk 0:02:37]} 10. Bd2 {[%clk 0:02:52]}  Bxd2+ {[%clk 0:02:37]} 11. Qxd2 {[%clk 0:02:52]}  O-O {[%clk 0:02:37]} 12. Be2 {[%clk 0:02:50]}  b6 {[%clk 0:02:33]} 13. O-O {[%clk 0:02:49]}  Bb7 {[%clk 0:02:34]} 14. Qe3 {[%clk 0:02:48]}  Nc6 {[%clk 0:02:30]} 15. Rfd1 {[%clk 0:02:46]}  Ne7 {[%clk 0:02:29]} 16. Qe5 {[%clk 0:02:35]}  Nf5 {[%clk 0:02:15]} 17. Qxf6 {[%clk 0:02:23]}  gxf6 {[%clk 0:02:16]} 18. g4 {[%clk 0:02:00]}  Nd6 {[%clk 0:02:15]} 19. c5 {[%clk 0:02:00]}  Ne4 {[%clk 0:02:08]} 20. cxb6 {[%clk 0:01:52]}  Nc3 {[%clk 0:02:05]} 21. Kf1 {[%clk 0:01:40]}  Nxd1 {[%clk 0:02:05]} 22. Bxd1 {[%clk 0:01:38]}  axb6 {[%clk 0:02:04]} 23. Nd2 {[%clk 0:01:24]}  Bd5 {[%clk 0:02:03]} 24. Bb3 {[%clk 0:01:23]}  Rfc8 {[%clk 0:02:00]} 25. Bxd5 {[%clk 0:01:21]}  exd5 {[%clk 0:02:01]} 26. Nf3 {[%clk 0:01:21]}  Rc2 {[%clk 0:02:00]} 27. a4 {[%clk 0:01:17]}  Rc4 {[%clk 0:02:00]} 28. Rb1 {[%clk 0:01:15]}  Ra6 {[%clk 0:01:57]} 29. Nh4 {[%clk 0:01:13]}  Rxd4 {[%clk 0:01:44]} 30. h3 {[%clk 0:01:07]}  h5 {[%clk 0:01:38]} 31. Nf5 {[%clk 0:01:06]}  Rf4 {[%clk 0:01:37]} 32. Ne7+ {[%clk 0:01:02]}  Kg7 {[%clk 0:01:36]} 33. Nxd5 {[%clk 0:01:03]}  Rfxa4 {[%clk 0:01:35]} 34. Nxb6 {[%clk 0:01:00]}  Ra1 {[%clk 0:01:32]} 35. Rxa1 {[%clk 0:01:01]}  Rxa1+ {[%clk 0:01:32]} 36. Kg2 {[%clk 0:01:02]}  hxg4 {[%clk 0:01:32]} 37. hxg4 {[%clk 0:01:02]}  Kg6 {[%clk 0:01:33]} 38. Nd5 {[%clk 0:01:03]}  Kg5 {[%clk 0:01:32]} 39. f3 {[%clk 0:01:02]}  Rd1 {[%clk 0:01:25]} 40. Ne3 {[%clk 0:00:59]}  Rd3 {[%clk 0:01:23]} 41. Kf2 {[%clk 0:00:56]}  Ra3 {[%clk 0:01:16]} 42. Nd5 {[%clk 0:00:55]}  f5 {[%clk 0:01:16]} 43. gxf5 {[%clk 0:00:52]}  Kxf5 {[%clk 0:01:17]} 44. Ne3+ {[%clk 0:00:52]}  Kf4 {[%clk 0:01:15]} 45. Nd5+ {[%clk 0:00:52]}  Kg5 {[%clk 0:01:15]} 46. Ne3 {[%clk 0:00:51]}  f5 {[%clk 0:01:14]} 47. Nc4 {[%clk 0:00:50]}  Rc3 {[%clk 0:01:13]} 48. Ne5 {[%clk 0:00:48]}  Rc5 {[%clk 0:01:04]} 49. Nd3 {[%clk 0:00:48]}  Rc2+ {[%clk 0:01:04]} 50. Kg3 {[%clk 0:00:48]}  Rc3 {[%clk 0:01:02]} 51. Nf4 {[%clk 0:00:47]}  Rc4 {[%clk 0:00:53]} 52. Ne6+ {[%clk 0:00:47]}  Kf6 {[%clk 0:00:53]} 53. Nf4 {[%clk 0:00:47]}  Ke5 {[%clk 0:00:53]} 54. Nd3+ {[%clk 0:00:47]}  Kd4 {[%clk 0:00:52]} 55. Nf4 {[%clk 0:00:47]}  Ke3 {[%clk 0:00:52]} 56. Nd5+ {[%clk 0:00:47]}  Ke2 {[%clk 0:00:50]} 57. Ne7 {[%clk 0:00:44]}  f4+ {[%clk 0:00:38]} 58. Kg4 {[%clk 0:00:45]}  Rd4 {[%clk 0:00:29]} 59. Ng6 {[%clk 0:00:41]}  Ke3 {[%clk 0:00:27]} 60. Nh4 {[%clk 0:00:42]}  Ra4 {[%clk 0:00:19]} 61. Ng2+ {[%clk 0:00:40]}  Kf2 {[%clk 0:00:19]} 62. Nh4 {[%clk 0:00:38]}  Ke2 {[%clk 0:00:15]} 63. Ng6 {[%clk 0:00:36]}  Kd3 {[%clk 0:00:15]} 64. Kf5 {[%clk 0:00:33]}  Ke3 {[%clk 0:00:15]} 65. Kg4 {[%clk 0:00:33]}  Ra1 {[%clk 0:00:13]} 66. Nh4 {[%clk 0:00:32]}  Rg1+ {[%clk 0:00:12]} 67. Kh3 {[%clk 0:00:30]}  Rh1+ {[%clk 0:00:11]} 68. Kg4 {[%clk 0:00:30]}  Rxh4+ {[%clk 0:00:12]} 69. Kxh4 {[%clk 0:00:30]}  Kxf3 {[%clk 0:00:12]} 70. Kh3 {[%clk 0:00:30]}  Ke2 {[%clk 0:00:13]} 0-1


[Site "https://www.chess.com"]

[Event "Titled Tuesday Blitz November 07 Early 2023"]
[White "Baches Garcia, Guillermo"]
[Black "Maect19"]
[WhiteFideId "2209764"]
[WhiteElo "2498"]
[BlackElo "2325"]
[Result "1/2-1/2"]
[Round "4"]
[TimeControl "180+1"]
[Date "2023.11.07"]
[WhiteClock "0:00:32"]
[BlackClock "0:00:22"]
[Board "171"]

1. d4 {[%clk 0:03:00]}  d5 {[%clk 0:02:59]} 2. Nf3 {[%clk 0:03:01]}  Nf6 {[%clk 0:02:59]} 3. Bg5 {[%clk 0:03:01]}  c6 {[%clk 0:02:57]} 4. c3 {[%clk 0:03:00]}  Bf5 {[%clk 0:02:57]} 5. e3 {[%clk 0:03:00]}  Nbd7 {[%clk 0:02:57]} 6. Bd3 {[%clk 0:02:58]}  Bxd3 {[%clk 0:02:56]} 7. Qxd3 {[%clk 0:02:58]}  e6 {[%clk 0:02:57]} 8. Nbd2 {[%clk 0:02:57]}  Be7 {[%clk 0:02:57]} 9. h4 {[%clk 0:02:52]}  h6 {[%clk 0:02:56]} 10. Bf4 {[%clk 0:02:52]}  Nf8 {[%clk 0:02:46]} 11. Ne5 {[%clk 0:02:45]}  Bd6 {[%clk 0:02:40]} 12. g4 {[%clk 0:02:34]}  Qe7 {[%clk 0:02:33]} 13. O-O-O {[%clk 0:02:31]}  Bxe5 {[%clk 0:02:27]} 14. dxe5 {[%clk 0:02:29]}  N6d7 {[%clk 0:02:26]} 15. Bg3 {[%clk 0:02:21]}  h5 {[%clk 0:02:17]} 16. g5 {[%clk 0:02:16]}  O-O-O {[%clk 0:02:15]} 17. f4 {[%clk 0:02:13]}  g6 {[%clk 0:02:14]} 18. e4 {[%clk 0:02:07]}  Nc5 {[%clk 0:01:59]} 19. Qe3 {[%clk 0:02:06]}  Kb8 {[%clk 0:01:52]} 20. Bf2 {[%clk 0:01:56]}  b6 {[%clk 0:01:43]} 21. b4 {[%clk 0:01:51]}  Nxe4 {[%clk 0:01:32]} 22. Nxe4 {[%clk 0:01:50]}  dxe4 {[%clk 0:01:33]} 23. Qxe4 {[%clk 0:01:41]}  Rd5 {[%clk 0:01:27]} 24. Rd4 {[%clk 0:01:15]}  Nd7 {[%clk 0:01:04]} 25. Rhd1 {[%clk 0:01:13]}  Rd8 {[%clk 0:01:02]} 26. Kb2 {[%clk 0:01:09]}  Kc7 {[%clk 0:00:50]} 27. a3 {[%clk 0:01:08]}  Nb8 {[%clk 0:00:46]} 28. c4 {[%clk 0:00:48]}  Rxd4 {[%clk 0:00:45]} 29. Rxd4 {[%clk 0:00:48]}  Rxd4 {[%clk 0:00:44]} 30. Qxd4 {[%clk 0:00:48]}  Qd7 {[%clk 0:00:42]} 31. Kc3 {[%clk 0:00:45]}  Qxd4+ {[%clk 0:00:35]} 32. Bxd4 {[%clk 0:00:46]}  a6 {[%clk 0:00:34]} 33. a4 {[%clk 0:00:45]}  b5 {[%clk 0:00:26]} 34. c5 {[%clk 0:00:35]}  Nd7 {[%clk 0:00:20]} 35. a5 {[%clk 0:00:33]}  Nf8 {[%clk 0:00:20]} 36. Kd2 {[%clk 0:00:31]}  Kd7 {[%clk 0:00:20]} 37. Kd3 {[%clk 0:00:31]}  Ke7 {[%clk 0:00:20]} 38. Ke4 {[%clk 0:00:31]}  Nd7 {[%clk 0:00:21]} 39. Kd3 {[%clk 0:00:32]}  Nf8 {[%clk 0:00:21]} 40. Ke4 {[%clk 0:00:32]}  Nd7 {[%clk 0:00:21]} 41. Kd3 {[%clk 0:00:32]}  Nf8 {[%clk 0:00:22]} 1/2-1/2


[Site "https://www.chess.com"]

[Event "Titled Tuesday Blitz November 07 Early 2023"]
[White "Hajiyev, Kanan"]
[Black "Petrova, Irina"]
[WhiteFideId "13404148"]
[BlackFideId "14124122"]
[WhiteElo "2494"]
[BlackElo "2316"]
[Result "1-0"]
[Round "4"]
[TimeControl "180+1"]
[Date "2023.11.07"]
[WhiteClock "0:00:46"]
[BlackClock "0:00:26"]
[Board "173"]

1. d4 {[%clk 0:03:00]}  d6 {[%clk 0:03:00]} 2. Nf3 {[%clk 0:02:59]}  g6 {[%clk 0:03:00]} 3. g3 {[%clk 0:03:00]}  Bg7 {[%clk 0:02:59]} 4. Bg2 {[%clk 0:03:01]}  Nf6 {[%clk 0:02:59]} 5. O-O {[%clk 0:03:01]}  O-O {[%clk 0:02:57]} 6. b3 {[%clk 0:03:02]}  Nc6 {[%clk 0:02:57]} 7. Bb2 {[%clk 0:03:03]}  Bf5 {[%clk 0:02:57]} 8. c4 {[%clk 0:03:03]}  Ne4 {[%clk 0:02:55]} 9. Nbd2 {[%clk 0:03:01]}  Nxd2 {[%clk 0:02:54]} 10. Qxd2 {[%clk 0:03:02]}  e5 {[%clk 0:02:52]} 11. d5 {[%clk 0:03:00]}  Ne7 {[%clk 0:02:51]} 12. Rfe1 {[%clk 0:02:56]}  a5 {[%clk 0:02:42]} 13. h4 {[%clk 0:02:53]}  Bd7 {[%clk 0:02:31]} 14. c5 {[%clk 0:02:51]}  h6 {[%clk 0:02:21]} 15. Rac1 {[%clk 0:02:44]}  f5 {[%clk 0:02:17]} 16. Ba3 {[%clk 0:02:33]}  Rf6 {[%clk 0:02:12]} 17. Rc3 {[%clk 0:02:20]}  f4 {[%clk 0:02:09]} 18. gxf4 {[%clk 0:02:10]}  exf4 {[%clk 0:01:46]} 19. Rc4 {[%clk 0:02:10]}  Qf8 {[%clk 0:01:31]} 20. cxd6 {[%clk 0:02:08]}  cxd6 {[%clk 0:01:31]} 21. Rc7 {[%clk 0:02:03]}  Bg4 {[%clk 0:01:30]} 22. Nd4 {[%clk 0:02:03]}  Rc8 {[%clk 0:01:17]} 23. Rec1 {[%clk 0:01:55]}  Rxc7 {[%clk 0:01:16]} 24. Rxc7 {[%clk 0:01:56]}  g5 {[%clk 0:00:59]} 25. hxg5 {[%clk 0:01:50]}  hxg5 {[%clk 0:01:00]} 26. Ne6 {[%clk 0:01:49]}  Bxe6 {[%clk 0:00:59]} 27. dxe6 {[%clk 0:01:50]}  Rxe6 {[%clk 0:00:55]} 28. Bd5 {[%clk 0:01:45]}  Nxd5 {[%clk 0:00:54]} 29. Qxd5 {[%clk 0:01:46]}  Qf6 {[%clk 0:00:50]} 30. Bb2 {[%clk 0:01:41]}  Qxb2 {[%clk 0:00:47]} 31. Qxe6+ {[%clk 0:01:40]}  Kh7 {[%clk 0:00:47]} 32. Qf5+ {[%clk 0:01:17]}  Kh6 {[%clk 0:00:47]} 33. Rc2 {[%clk 0:01:16]}  Qb1+ {[%clk 0:00:46]} 34. Kg2 {[%clk 0:01:17]}  Qd1 {[%clk 0:00:44]} 35. Qd3 {[%clk 0:00:53]}  Qxd3 {[%clk 0:00:33]} 36. exd3 {[%clk 0:00:54]}  b6 {[%clk 0:00:33]} 37. Kf3 {[%clk 0:00:53]}  Bd4 {[%clk 0:00:33]} 38. Kg4 {[%clk 0:00:51]}  Bc5 {[%clk 0:00:32]} 39. f3 {[%clk 0:00:46]}  Kg6 {[%clk 0:00:31]} 40. Rh2 {[%clk 0:00:45]}  b5 {[%clk 0:00:30]} 41. Rh5 {[%clk 0:00:45]}  Be3 {[%clk 0:00:30]} 42. Rxg5+ {[%clk 0:00:45]}  Kf6 {[%clk 0:00:26]} 43. Rxb5 {[%clk 0:00:46]} 1-0


[Site "https://www.chess.com"]

[Event "Titled Tuesday Blitz November 07 Early 2023"]
[White "Kubicka, Anna"]
[Black "Zaksaite, Salomeja"]
[WhiteFideId "1152254"]
[BlackFideId "12801496"]
[WhiteElo "2494"]
[BlackElo "2315"]
[Result "1/2-1/2"]
[Round "4"]
[TimeControl "180+1"]
[Date "2023.11.07"]
[WhiteClock "0:00:06"]
[BlackClock "0:00:05"]
[Board "174"]

1. e4 {[%clk 0:03:00]}  c5 {[%clk 0:02:58]} 2. Ne2 {[%clk 0:02:59]}  Nc6 {[%clk 0:02:57]} 3. g3 {[%clk 0:02:59]}  d5 {[%clk 0:02:44]} 4. Bg2 {[%clk 0:02:59]}  dxe4 {[%clk 0:02:39]} 5. O-O {[%clk 0:02:58]}  Nf6 {[%clk 0:02:39]} 6. Nec3 {[%clk 0:02:57]}  g6 {[%clk 0:02:33]} 7. Nxe4 {[%clk 0:02:56]}  Nxe4 {[%clk 0:02:31]} 8. Bxe4 {[%clk 0:02:57]}  Bg7 {[%clk 0:02:32]} 9. Nc3 {[%clk 0:02:55]}  Nd4 {[%clk 0:02:28]} 10. d3 {[%clk 0:02:52]}  O-O {[%clk 0:02:27]} 11. Bg2 {[%clk 0:02:48]}  Rb8 {[%clk 0:02:22]} 12. a4 {[%clk 0:02:47]}  b6 {[%clk 0:02:20]} 13. Nb5 {[%clk 0:02:43]}  a6 {[%clk 0:01:54]} 14. Nxd4 {[%clk 0:02:42]}  Bxd4 {[%clk 0:01:55]} 15. Bh6 {[%clk 0:02:19]}  Re8 {[%clk 0:01:49]} 16. Qc1 {[%clk 0:02:13]}  Bb7 {[%clk 0:01:46]} 17. Rb1 {[%clk 0:02:01]}  Bxg2 {[%clk 0:01:44]} 18. Kxg2 {[%clk 0:02:02]}  Qd5+ {[%clk 0:01:44]} 19. Kg1 {[%clk 0:01:57]}  Rbd8 {[%clk 0:01:26]} 20. Qg5 {[%clk 0:01:45]}  Qc6 {[%clk 0:00:59]} 21. b3 {[%clk 0:01:45]}  Rd5 {[%clk 0:00:58]} 22. Qg4 {[%clk 0:01:45]}  Rh5 {[%clk 0:00:56]} 23. Be3 {[%clk 0:01:38]}  Bg7 {[%clk 0:00:50]} 24. f4 {[%clk 0:01:34]}  Rd8 {[%clk 0:00:44]} 25. Qf3 {[%clk 0:01:32]}  Rhd5 {[%clk 0:00:40]} 26. Rbe1 {[%clk 0:01:29]}  e6 {[%clk 0:00:36]} 27. Bf2 {[%clk 0:01:22]}  b5 {[%clk 0:00:34]} 28. axb5 {[%clk 0:01:22]}  axb5 {[%clk 0:00:34]} 29. Re4 {[%clk 0:01:21]}  Qa8 {[%clk 0:00:25]} 30. Kg2 {[%clk 0:01:18]}  Qa2 {[%clk 0:00:24]} 31. Qe2 {[%clk 0:01:11]}  Qa8 {[%clk 0:00:24]} 32. Kg1 {[%clk 0:01:08]}  Rc8 {[%clk 0:00:24]} 33. Rd1 {[%clk 0:00:58]}  Qa6 {[%clk 0:00:23]} 34. c4 {[%clk 0:00:44]}  Rd7 {[%clk 0:00:20]} 35. d4 {[%clk 0:00:26]}  bxc4 {[%clk 0:00:17]} 36. dxc5 {[%clk 0:00:16]}  Rxd1+ {[%clk 0:00:15]} 37. Qxd1 {[%clk 0:00:17]}  cxb3 {[%clk 0:00:15]} 38. Qxb3 {[%clk 0:00:16]}  Qa1+ {[%clk 0:00:09]} 39. Kg2 {[%clk 0:00:16]}  Qa8 {[%clk 0:00:10]} 40. Qf3 {[%clk 0:00:16]}  Qd5 {[%clk 0:00:09]} 41. Re2 {[%clk 0:00:14]}  Bf8 {[%clk 0:00:07]} 42. Qxd5 {[%clk 0:00:14]}  exd5 {[%clk 0:00:08]} 43. Rc2 {[%clk 0:00:15]}  Rc6 {[%clk 0:00:08]} 44. Kf3 {[%clk 0:00:15]}  f5 {[%clk 0:00:08]} 45. Ke2 {[%clk 0:00:15]}  Kf7 {[%clk 0:00:08]} 46. Kd3 {[%clk 0:00:16]}  Ke6 {[%clk 0:00:09]} 47. Bd4 {[%clk 0:00:16]}  Kd7 {[%clk 0:00:07]} 48. h3 {[%clk 0:00:14]}  Ra6 {[%clk 0:00:07]} 49. Be5 {[%clk 0:00:12]}  Kc6 {[%clk 0:00:07]} 50. Bd4 {[%clk 0:00:11]}  Ra3+ {[%clk 0:00:07]} 51. Rc3 {[%clk 0:00:10]}  Rxc3+ {[%clk 0:00:07]} 52. Bxc3 {[%clk 0:00:10]}  Bxc5 {[%clk 0:00:07]} 53. g4 {[%clk 0:00:11]}  Kb5 {[%clk 0:00:06]} 54. Bf6 {[%clk 0:00:10]}  Bg1 {[%clk 0:00:05]} 55. gxf5 {[%clk 0:00:08]}  gxf5 {[%clk 0:00:05]} 56. Be5 {[%clk 0:00:08]}  Kc5 {[%clk 0:00:05]} 57. Bc7 {[%clk 0:00:08]}  d4 {[%clk 0:00:05]} 58. Be5 {[%clk 0:00:07]}  Kd5 {[%clk 0:00:05]} 59. Bf6 {[%clk 0:00:07]}  Be3 {[%clk 0:00:05]} 60. Be5 {[%clk 0:00:07]}  Bf2 {[%clk 0:00:05]} 61. Bf6 {[%clk 0:00:06]}  Be3 {[%clk 0:00:05]} 62. Be5 {[%clk 0:00:06]}  Bc1 {[%clk 0:00:05]} 63. Bc7 {[%clk 0:00:05]}  Kc6 {[%clk 0:00:04]} 64. Be5 {[%clk 0:00:05]}  Kd5 {[%clk 0:00:05]} 65. Bc7 {[%clk 0:00:06]}  h6 {[%clk 0:00:05]} 66. Be5 {[%clk 0:00:06]}  Bb2 {[%clk 0:00:05]} 67. Bc7 {[%clk 0:00:05]}  Bc3 {[%clk 0:00:05]} 68. Be5 {[%clk 0:00:06]}  Bb2 {[%clk 0:00:05]} 69. Bc7 {[%clk 0:00:06]}  Ba3 {[%clk 0:00:05]} 70. Be5 {[%clk 0:00:05]}  Bc5 {[%clk 0:00:06]} 71. Bc7 {[%clk 0:00:04]}  Ba7 {[%clk 0:00:06]} 72. Be5 {[%clk 0:00:05]}  Bb6 {[%clk 0:00:05]} 73. Bb8 {[%clk 0:00:05]}  Bc5 {[%clk 0:00:06]} 74. Be5 {[%clk 0:00:05]}  Bb6 {[%clk 0:00:06]} 75. Bb8 {[%clk 0:00:06]}  Bd8 {[%clk 0:00:05]} 76. Be5 {[%clk 0:00:06]}  Bb6 {[%clk 0:00:05]} 1/2-1/2


[Site "https://www.chess.com"]

[Event "Titled Tuesday Blitz November 07 Early 2023"]
[White "Garrido, Denis"]
[Black "Lehtosaari, Mauri"]
[WhiteFideId "601217"]
[BlackFideId "501999"]
[WhiteElo "2297"]
[BlackElo "2492"]
[Result "0-1"]
[Round "4"]
[TimeControl "180+1"]
[Date "2023.11.07"]
[WhiteClock "0:01:37"]
[BlackClock "0:00:17"]
[Board "176"]

1. e4 {[%clk 0:03:00]}  d5 {[%clk 0:02:59]} 2. exd5 {[%clk 0:03:00]}  Qxd5 {[%clk 0:03:00]} 3. Nc3 {[%clk 0:03:00]}  Qd8 {[%clk 0:03:00]} 4. Nf3 {[%clk 0:03:00]}  Nf6 {[%clk 0:02:59]} 5. Bc4 {[%clk 0:03:00]}  a6 {[%clk 0:02:55]} 6. d4 {[%clk 0:03:00]}  b5 {[%clk 0:02:55]} 7. Bb3 {[%clk 0:03:00]}  c5 {[%clk 0:02:55]} 8. dxc5 {[%clk 0:02:58]}  Qxd1+ {[%clk 0:02:56]} 9. Nxd1 {[%clk 0:02:58]}  e6 {[%clk 0:02:53]} 10. O-O {[%clk 0:02:53]}  Bxc5 {[%clk 0:02:49]} 11. a4 {[%clk 0:02:53]}  Bb7 {[%clk 0:02:36]} 12. axb5 {[%clk 0:02:52]}  axb5 {[%clk 0:02:37]} 13. Rxa8 {[%clk 0:02:52]}  Bxa8 {[%clk 0:02:38]} 14. Ne5 {[%clk 0:02:51]}  Nbd7 {[%clk 0:02:29]} 15. Nxd7 {[%clk 0:02:50]}  Kxd7 {[%clk 0:02:13]} 16. Be3 {[%clk 0:02:51]}  Bxe3 {[%clk 0:02:00]} 17. Nxe3 {[%clk 0:02:52]}  Kc7 {[%clk 0:01:57]} 18. c4 {[%clk 0:02:47]}  bxc4 {[%clk 0:01:45]} 19. Bxc4 {[%clk 0:02:48]}  Rb8 {[%clk 0:01:42]} 20. b3 {[%clk 0:02:45]}  Nd5 {[%clk 0:01:21]} 21. Ng4 {[%clk 0:02:42]}  f6 {[%clk 0:01:18]} 22. Rc1 {[%clk 0:02:41]}  Kd6 {[%clk 0:01:17]} 23. Kf1 {[%clk 0:02:38]}  Bc6 {[%clk 0:01:12]} 24. Ke2 {[%clk 0:02:34]}  Bb5 {[%clk 0:01:12]} 25. g3 {[%clk 0:02:32]}  h5 {[%clk 0:01:08]} 26. Ne3 {[%clk 0:02:29]}  Nxe3 {[%clk 0:01:08]} 27. Kxe3 {[%clk 0:02:30]}  Bxc4 {[%clk 0:01:07]} 28. bxc4 {[%clk 0:02:30]}  Kc5 {[%clk 0:01:08]} 29. h4 {[%clk 0:02:26]}  Rb3+ {[%clk 0:01:07]} 30. Ke2 {[%clk 0:02:24]}  e5 {[%clk 0:01:02]} 31. Rd1 {[%clk 0:02:16]}  Rb7 {[%clk 0:00:56]} 32. Rc1 {[%clk 0:02:15]}  Rd7 {[%clk 0:00:52]} 33. Ke3 {[%clk 0:02:14]}  f5 {[%clk 0:00:48]} 34. f3 {[%clk 0:02:11]}  Ra7 {[%clk 0:00:40]} 35. Rc2 {[%clk 0:02:02]}  Ra3+ {[%clk 0:00:38]} 36. Kf2 {[%clk 0:02:02]}  Ra4 {[%clk 0:00:37]} 37. Re2 {[%clk 0:02:02]}  Kd4 {[%clk 0:00:33]} 38. f4 {[%clk 0:02:01]}  e4 {[%clk 0:00:33]} 39. Rd2+ {[%clk 0:02:00]}  Kxc4 {[%clk 0:00:33]} 40. Rd7 {[%clk 0:02:00]}  Ra2+ {[%clk 0:00:34]} 41. Kf1 {[%clk 0:01:56]}  Ra3 {[%clk 0:00:28]} 42. Rxg7 {[%clk 0:01:55]}  Kd3 {[%clk 0:00:28]} 43. Rb7 {[%clk 0:01:50]}  Ke3 {[%clk 0:00:26]} 44. Kg2 {[%clk 0:01:47]}  Ra2+ {[%clk 0:00:25]} 45. Kh3 {[%clk 0:01:47]}  Kf2 {[%clk 0:00:23]} 46. Kh2 {[%clk 0:01:43]}  e3 {[%clk 0:00:22]} 47. Rb1 {[%clk 0:01:42]}  e2 {[%clk 0:00:22]} 48. Rg1 {[%clk 0:01:42]}  Kf3 {[%clk 0:00:19]} 49. Rg2 {[%clk 0:01:42]}  Rd2 {[%clk 0:00:19]} 50. Kh3 {[%clk 0:01:37]}  e1=Q {[%clk 0:00:17]} 51. Rxd2 {[%clk 0:01:37]}  Qxd2 {[%clk 0:00:17]} 0-1


[Site "https://www.chess.com"]